Workbook

Sheet Zag_shema (hidden)
A1: Власний внесок, % | B1: ='калькулятор платежів'!B7 -> 0.5
A2: Сума кредиту | B2: =B3-B3*B1 -> 265000
A3: Вартість ТЗ | B3: ='калькулятор платежів'!B6 -> 530000
A4: Строк кредитування у місяцях | B4: ='калькулятор платежів'!B13 -> 36
A5: Коміссія від вартості | B5: 0
A6: Комісія від суми кредиту | B6: 0.02
A7: Ставка кредитування | B7: ='калькулятор платежів'!B12 -> 0.1799
A9: Планова сума комісій | B9: =B2*B6+B3*B5 -> 5300
A10: Планова сума відсотків | B10: =SUM(D16:D255) -> 73496.64583
A11: Середній залишок заборгованості | B11: =(SUM(B16:B255)+B2)/B4 -> 136180.5556
A12: Сукупна дохідність за операцією | B12: =(B10+B9)/B11/(B4/12) -> 0.192872973
A13: в т.ч. без комісій від вартості ТЗ | B13: =((B2*B6+B10)/B11)/(B4/12) -> 0.192872973
A15: Місяць | B15: Залишок заборгованості на кінець періоду | C15: Погашення основної суми | D15: Сума відсотків | E15: Платіж
A16: 1 | B16: =IF((B2-C16)<=0,0,B2-C16) -> 257638.8889 | C16: =IF(($B$2/$B$4)<=0,0,$B$2/$B$4) -> 7361.111111 | D16: =IF((B2*$B$7/12)<=0,0,B2*$B$7/12) -> 3972.791667 | E16: =IF((D16+C16)<=0,0,D16+C16) -> 11333.90278
A17: 2 | B17: =IF((B16-C17)<=0,0,B16-C17) -> 250277.7778 | C17: =IF(($B$2/$B$4)<=0,0,$B$2/$B$4) -> 7361.111111 | D17: =IF((B16*$B$7/12)<=0,0,B16*$B$7/12) -> 3862.436343 | E17: =IF((D17+C17)<=0,0,D17+C17) -> 11223.54745
A18: 3 | B18: =IF((B17-C18)<=0,0,B17-C18) -> 242916.6667 | C18: =IF(($B$2/$B$4)<=0,0,$B$2/$B$4) -> 7361.111111 | D18: 3752.081019 | E18: 11113.19213
A19: 4 | B19: 235555.5556 | C19: 7361.111111 | D19: 3641.725694 | E19: 11002.83681
A20: 5 | B20: 228194.4444 | C20: 7361.111111 | D20: 3531.37037 | E20: 10892.48148
A21: 6 | B21: 220833.3333 | C21: 7361.111111 | D21: 3421.015046 | E21: 10782.12616
A22: 7 | B22: 213472.2222 | C22: 7361.111111 | D22: 3310.659722 | E22: 10671.77083
A23: 8 | B23: 206111.1111 | C23: 7361.111111 | D23: 3200.304398 | E23: 10561.41551
A24: 9 | B24: 198750 | C24: 7361.111111 | D24: 3089.949074 | E24: 10451.06019
A25: 10 | B25: 191388.8889 | C25: 7361.111111 | D25: 2979.59375 | E25: 10340.70486
A26: 11 | B26: 184027.7778 | C26: 7361.111111 | D26: 2869.238426 | E26: 10230.34954
A27: 12 | B27: 176666.6667 | C27: 7361.111111 | D27: 2758.883102 | E27: 10119.99421
A28: 13 | B28: 169305.5556 | C28: 7361.111111 | D28: 2648.527778 | E28: 10009.63889
A29: 14 | B29: 161944.4444 | C29: 7361.111111 | D29: 2538.172454 | E29: 9899.283565
A30: 15 | B30: 154583.3333 | C30: 7361.111111 | D30: 2427.81713 | E30: 9788.928241
A31: 16 | B31: 147222.2222 | C31: 7361.111111 | D31: 2317.461806 | E31: 9678.572917
A32: 17 | B32: 139861.1111 | C32: 7361.111111 | D32: 2207.106481 | E32: 9568.217593
A33: 18 | B33: 132500 | C33: 7361.111111 | D33: 2096.751157 | E33: 9457.862269
A34: 19 | B34: 125138.8889 | C34: 7361.111111 | D34: 1986.395833 | E34: 9347.506944
A35: 20 | B35: 117777.7778 | C35: 7361.111111 | D35: 1876.040509 | E35: 9237.15162
A36: 21 | B36: 110416.6667 | C36: 7361.111111 | D36: 1765.685185 | E36: 9126.796296
A37: 22 | B37: 103055.5556 | C37: 7361.111111 | D37: 1655.329861 | E37: 9016.440972
A38: 23 | B38: 95694.44444 | C38: 7361.111111 | D38: 1544.974537 | E38: 8906.085648
A39: 24 | B39: 88333.33333 | C39: 7361.111111 | D39: 1434.619213 | E39: 8795.730324
A40: 25 | B40: 80972.22222 | C40: 7361.111111 | D40: 1324.263889 | E40: 8685.375
A41: 26 | B41: 73611.11111 | C41: 7361.111111 | D41: 1213.908565 | E41: 8575.019676
A42: 27 | B42: 66250 | C42: 7361.111111 | D42: 1103.553241 | E42: 8464.664352
A43: 28 | B43: 58888.88889 | C43: 7361.111111 | D43: 993.1979167 | E43: 8354.309028
A44: 29 | B44: 51527.77778 | C44: 7361.111111 | D44: 882.8425926 | E44: 8243.953704
A45: 30 | B45: 44166.66667 | C45: 7361.111111 | D45: 772.4872685 | E45: 8133.59838
A46: 31 | B46: 36805.55556 | C46: 7361.111111 | D46: 662.1319444 | E46: 8023.243056
A47: 32 | B47: 29444.44444 | C47: 7361.111111 | D47: 551.7766204 | E47: 7912.887731
A48: 33 | B48: 22083.33333 | C48: 7361.111111 | D48: 441.4212963 | E48: 7802.532407
A49: 34 | B49: 14722.22222 | C49: 7361.111111 | D49: 331.0659722 | E49: 7692.177083
A50: 35 | B50: 7361.111111 | C50: 7361.111111 | D50: 220.7106481 | E50: 7581.821759
A51: 36 | B51: 0 | C51: 7361.111111 | D51: 110.3553241 | E51: 7471.466435
A52: 37 | B52: 0 | C52: 7361.111111 | D52: 0 | E52: 7361.111111
A53: 38 | B53: 0 | C53: 7361.111111 | D53: 0 | E53: 7361.111111
A54: 39 | B54: 0 | C54: 7361.111111 | D54: 0 | E54: 7361.111111
A55: 40 | B55: 0 | C55: 7361.111111 | D55: 0 | E55: 7361.111111
A56: 41 | B56: 0 | C56: 7361.111111 | D56: 0 | E56: 7361.111111
A57: 42 | B57: 0 | C57: 7361.111111 | D57: 0 | E57: 7361.111111
A58: 43 | B58: 0 | C58: 7361.111111 | D58: 0 | E58: 7361.111111
A59: 44 | B59: 0 | C59: 7361.111111 | D59: 0 | E59: 7361.111111
A60: 45 | B60: 0 | C60: 7361.111111 | D60: 0 | E60: 7361.111111
A61: 46 | B61: 0 | C61: 7361.111111 | D61: 0 | E61: 7361.111111
A62: 47 | B62: 0 | C62: 7361.111111 | D62: 0 | E62: 7361.111111
A63: 48 | B63: 0 | C63: 7361.111111 | D63: 0 | E63: 7361.111111
A64: 49 | B64: 0 | C64: 7361.111111 | D64: 0 | E64: 7361.111111
A65: 50 | B65: 0 | C65: 7361.111111 | D65: 0 | E65: 7361.111111
A66: 51 | B66: 0 | C66: 7361.111111 | D66: 0 | E66: 7361.111111
A67: 52 | B67: 0 | C67: 7361.111111 | D67: 0 | E67: 7361.111111
A68: 53 | B68: 0 | C68: 7361.111111 | D68: 0 | E68: 7361.111111
A69: 54 | B69: 0 | C69: 7361.111111 | D69: 0 | E69: 7361.111111
A70: 55 | B70: 0 | C70: 7361.111111 | D70: 0 | E70: 7361.111111
A71: 56 | B71: 0 | C71: 7361.111111 | D71: 0 | E71: 7361.111111
A72: 57 | B72: 0 | C72: 7361.111111 | D72: 0 | E72: 7361.111111
A73: 58 | B73: 0 | C73: 7361.111111 | D73: 0 | E73: 7361.111111
A74: 59 | B74: 0 | C74: 7361.111111 | D74: 0 | E74: 7361.111111
A75: 60 | B75: 0 | C75: 7361.111111 | D75: 0 | E75: 7361.111111
A76: 61 | B76: 0 | C76: 7361.111111 | D76: 0 | E76: 7361.111111
A77: 62 | B77: 0 | C77: 7361.111111 | D77: 0 | E77: 7361.111111
A78: 63 | B78: 0 | C78: 7361.111111 | D78: 0 | E78: 7361.111111
A79: 64 | B79: 0 | C79: 7361.111111 | D79: 0 | E79: 7361.111111
A80: 65 | B80: 0 | C80: 7361.111111 | D80: 0 | E80: 7361.111111
A81: 66 | B81: 0 | C81: 7361.111111 | D81: =IF((B80*$B$7/12)<=0,0,B80*$B$7/12) -> 0 | E81: =IF((D81+C81)<=0,0,D81+C81) -> 7361.111111
A82: 67 | B82: =IF((B81-C82)<=0,0,B81-C82) -> 0 | C82: =IF(($B$2/$B$4)<=0,0,$B$2/$B$4) -> 7361.111111 | D82: 0 | E82: 7361.111111
A83: 68 | B83: 0 | C83: 7361.111111 | D83: 0 | E83: 7361.111111
A84: 69 | B84: 0 | C84: 7361.111111 | D84: 0 | E84: 7361.111111
A85: 70 | B85: 0 | C85: 7361.111111 | D85: 0 | E85: 7361.111111
A86: 71 | B86: 0 | C86: 7361.111111 | D86: 0 | E86: 7361.111111
A87: 72 | B87: 0 | C87: 7361.111111 | D87: 0 | E87: 7361.111111
A88: 73 | B88: 0 | C88: 7361.111111 | D88: 0 | E88: 7361.111111
A89: 74 | B89: 0 | C89: 7361.111111 | D89: 0 | E89: 7361.111111
A90: 75 | B90: 0 | C90: 7361.111111 | D90: 0 | E90: 7361.111111
A91: 76 | B91: 0 | C91: 7361.111111 | D91: 0 | E91: 7361.111111
A92: 77 | B92: 0 | C92: 7361.111111 | D92: 0 | E92: 7361.111111
A93: 78 | B93: 0 | C93: 7361.111111 | D93: 0 | E93: 7361.111111
A94: 79 | B94: 0 | C94: 7361.111111 | D94: 0 | E94: 7361.111111
A95: 80 | B95: 0 | C95: 7361.111111 | D95: 0 | E95: 7361.111111
A96: 81 | B96: 0 | C96: 7361.111111 | D96: 0 | E96: 7361.111111
A97: 82 | B97: 0 | C97: 7361.111111 | D97: 0 | E97: 7361.111111
A98: 83 | B98: 0 | C98: 7361.111111 | D98: 0 | E98: 7361.111111
A99: 84 | B99: 0 | C99: 7361.111111 | D99: 0 | E99: 7361.111111
A100: 85 | B100: 0 | C100: 7361.111111 | D100: 0 | E100: 7361.111111
A101: 86 | B101: 0 | C101: 7361.111111 | D101: 0 | E101: 7361.111111
A102: 87 | B102: 0 | C102: 7361.111111 | D102: 0 | E102: 7361.111111
A103: 88 | B103: 0 | C103: 7361.111111 | D103: 0 | E103: 7361.111111
A104: 89 | B104: 0 | C104: 7361.111111 | D104: 0 | E104: 7361.111111
A105: 90 | B105: 0 | C105: 7361.111111 | D105: 0 | E105: 7361.111111
A106: 91 | B106: 0 | C106: 7361.111111 | D106: 0 | E106: 7361.111111
A107: 92 | B107: 0 | C107: 7361.111111 | D107: 0 | E107: 7361.111111
A108: 93 | B108: 0 | C108: 7361.111111 | D108: 0 | E108: 7361.111111
A109: 94 | B109: 0 | C109: 7361.111111 | D109: 0 | E109: 7361.111111
A110: 95 | B110: 0 | C110: 7361.111111 | D110: 0 | E110: 7361.111111
A111: 96 | B111: 0 | C111: 7361.111111 | D111: 0 | E111: 7361.111111
A112: 97 | B112: 0 | C112: 7361.111111 | D112: 0 | E112: 7361.111111
A113: 98 | B113: 0 | C113: 7361.111111 | D113: 0 | E113: 7361.111111
A114: 99 | B114: 0 | C114: 7361.111111 | D114: 0 | E114: 7361.111111
A115: 100 | B115: 0 | C115: 7361.111111 | D115: 0 | E115: 7361.111111
A116: 101 | B116: 0 | C116: 7361.111111 | D116: 0 | E116: 7361.111111
A117: 102 | B117: 0 | C117: 7361.111111 | D117: 0 | E117: 7361.111111
A118: 103 | B118: 0 | C118: 7361.111111 | D118: 0 | E118: 7361.111111
A119: 104 | B119: 0 | C119: 7361.111111 | D119: 0 | E119: 7361.111111
A120: 105 | B120: 0 | C120: 7361.111111 | D120: 0 | E120: 7361.111111
A121: 106 | B121: 0 | C121: 7361.111111 | D121: 0 | E121: 7361.111111
A122: 107 | B122: 0 | C122: 7361.111111 | D122: 0 | E122: 7361.111111
A123: 108 | B123: 0 | C123: 7361.111111 | D123: 0 | E123: 7361.111111
A124: 109 | B124: 0 | C124: 7361.111111 | D124: 0 | E124: 7361.111111
A125: 110 | B125: 0 | C125: 7361.111111 | D125: 0 | E125: 7361.111111
A126: 111 | B126: 0 | C126: 7361.111111 | D126: 0 | E126: 7361.111111
A127: 112 | B127: 0 | C127: 7361.111111 | D127: 0 | E127: 7361.111111
A128: 113 | B128: 0 | C128: 7361.111111 | D128: 0 | E128: 7361.111111
A129: 114 | B129: 0 | C129: 7361.111111 | D129: 0 | E129: 7361.111111
A130: 115 | B130: 0 | C130: 7361.111111 | D130: 0 | E130: 7361.111111
A131: 116 | B131: 0 | C131: 7361.111111 | D131: 0 | E131: 7361.111111
A132: 117 | B132: 0 | C132: 7361.111111 | D132: 0 | E132: 7361.111111
A133: 118 | B133: 0 | C133: 7361.111111 | D133: 0 | E133: 7361.111111
A134: 119 | B134: 0 | C134: 7361.111111 | D134: 0 | E134: 7361.111111
A135: 120 | B135: 0 | C135: 7361.111111 | D135: 0 | E135: 7361.111111
A136: 121 | B136: 0 | C136: 7361.111111 | D136: 0 | E136: 7361.111111
A137: 122 | B137: 0 | C137: 7361.111111 | D137: 0 | E137: 7361.111111
A138: 123 | B138: 0 | C138: 7361.111111 | D138: 0 | E138: 7361.111111
A139: 124 | B139: 0 | C139: 7361.111111 | D139: 0 | E139: 7361.111111
A140: 125 | B140: 0 | C140: 7361.111111 | D140: 0 | E140: 7361.111111
A141: 126 | B141: 0 | C141: 7361.111111 | D141: 0 | E141: 7361.111111
A142: 127 | B142: 0 | C142: 7361.111111 | D142: 0 | E142: 7361.111111
A143: 128 | B143: 0 | C143: 7361.111111 | D143: 0 | E143: 7361.111111
A144: 129 | B144: 0 | C144: 7361.111111 | D144: 0 | E144: 7361.111111
A145: 130 | B145: 0 | C145: 7361.111111 | D145: =IF((B144*$B$7/12)<=0,0,B144*$B$7/12) -> 0 | E145: =IF((D145+C145)<=0,0,D145+C145) -> 7361.111111
A146: 131 | B146: =IF((B145-C146)<=0,0,B145-C146) -> 0 | C146: =IF(($B$2/$B$4)<=0,0,$B$2/$B$4) -> 7361.111111 | D146: 0 | E146: 7361.111111
A147: 132 | B147: 0 | C147: 7361.111111 | D147: 0 | E147: 7361.111111
A148: 133 | B148: 0 | C148: 7361.111111 | D148: 0 | E148: 7361.111111
A149: 134 | B149: 0 | C149: 7361.111111 | D149: 0 | E149: 7361.111111
A150: 135 | B150: 0 | C150: 7361.111111 | D150: 0 | E150: 7361.111111
A151: 136 | B151: 0 | C151: 7361.111111 | D151: 0 | E151: 7361.111111
A152: 137 | B152: 0 | C152: 7361.111111 | D152: 0 | E152: 7361.111111
A153: 138 | B153: 0 | C153: 7361.111111 | D153: 0 | E153: 7361.111111
A154: 139 | B154: 0 | C154: 7361.111111 | D154: 0 | E154: 7361.111111
A155: 140 | B155: 0 | C155: 7361.111111 | D155: 0 | E155: 7361.111111
A156: 141 | B156: 0 | C156: 7361.111111 | D156: 0 | E156: 7361.111111
A157: 142 | B157: 0 | C157: 7361.111111 | D157: 0 | E157: 7361.111111
A158: 143 | B158: 0 | C158: 7361.111111 | D158: 0 | E158: 7361.111111
A159: 144 | B159: 0 | C159: 7361.111111 | D159: 0 | E159: 7361.111111
A160: 145 | B160: 0 | C160: 7361.111111 | D160: 0 | E160: 7361.111111
A161: 146 | B161: 0 | C161: 7361.111111 | D161: 0 | E161: 7361.111111
A162: 147 | B162: 0 | C162: 7361.111111 | D162: 0 | E162: 7361.111111
A163: 148 | B163: 0 | C163: 7361.111111 | D163: 0 | E163: 7361.111111
A164: 149 | B164: 0 | C164: 7361.111111 | D164: 0 | E164: 7361.111111
A165: 150 | B165: 0 | C165: 7361.111111 | D165: 0 | E165: 7361.111111
A166: 151 | B166: 0 | C166: 7361.111111 | D166: 0 | E166: 7361.111111
A167: 152 | B167: 0 | C167: 7361.111111 | D167: 0 | E167: 7361.111111
A168: 153 | B168: 0 | C168: 7361.111111 | D168: 0 | E168: 7361.111111
A169: 154 | B169: 0 | C169: 7361.111111 | D169: 0 | E169: 7361.111111
A170: 155 | B170: 0 | C170: 7361.111111 | D170: 0 | E170: 7361.111111
A171: 156 | B171: 0 | C171: 7361.111111 | D171: 0 | E171: 7361.111111
A172: 157 | B172: 0 | C172: 7361.111111 | D172: 0 | E172: 7361.111111
A173: 158 | B173: 0 | C173: 7361.111111 | D173: 0 | E173: 7361.111111
A174: 159 | B174: 0 | C174: 7361.111111 | D174: 0 | E174: 7361.111111
A175: 160 | B175: 0 | C175: 7361.111111 | D175: 0 | E175: 7361.111111
A176: 161 | B176: 0 | C176: 7361.111111 | D176: 0 | E176: 7361.111111
A177: 162 | B177: 0 | C177: 7361.111111 | D177: 0 | E177: 7361.111111
A178: 163 | B178: 0 | C178: 7361.111111 | D178: 0 | E178: 7361.111111
A179: 164 | B179: 0 | C179: 7361.111111 | D179: 0 | E179: 7361.111111
A180: 165 | B180: 0 | C180: 7361.111111 | D180: 0 | E180: 7361.111111
A181: 166 | B181: 0 | C181: 7361.111111 | D181: 0 | E181: 7361.111111
A182: 167 | B182: 0 | C182: 7361.111111 | D182: 0 | E182: 7361.111111
A183: 168 | B183: 0 | C183: 7361.111111 | D183: 0 | E183: 7361.111111
A184: 169 | B184: 0 | C184: 7361.111111 | D184: 0 | E184: 7361.111111
A185: 170 | B185: 0 | C185: 7361.111111 | D185: 0 | E185: 7361.111111
A186: 171 | B186: 0 | C186: 7361.111111 | D186: 0 | E186: 7361.111111
A187: 172 | B187: 0 | C187: 7361.111111 | D187: 0 | E187: 7361.111111
A188: 173 | B188: 0 | C188: 7361.111111 | D188: 0 | E188: 7361.111111
A189: 174 | B189: 0 | C189: 7361.111111 | D189: 0 | E189: 7361.111111
A190: 175 | B190: 0 | C190: 7361.111111 | D190: 0 | E190: 7361.111111
A191: 176 | B191: 0 | C191: 7361.111111 | D191: 0 | E191: 7361.111111
A192: 177 | B192: 0 | C192: 7361.111111 | D192: 0 | E192: 7361.111111
A193: 178 | B193: 0 | C193: 7361.111111 | D193: 0 | E193: 7361.111111
A194: 179 | B194: 0 | C194: 7361.111111 | D194: 0 | E194: 7361.111111
A195: 180 | B195: 0 | C195: 7361.111111 | D195: 0 | E195: 7361.111111
A196: 181 | B196: 0 | C196: 7361.111111 | D196: 0 | E196: 7361.111111
A197: 182 | B197: 0 | C197: 7361.111111 | D197: 0 | E197: 7361.111111
A198: 183 | B198: 0 | C198: 7361.111111 | D198: 0 | E198: 7361.111111
A199: 184 | B199: 0 | C199: 7361.111111 | D199: 0 | E199: 7361.111111
A200: 185 | B200: 0 | C200: 7361.111111 | D200: 0 | E200: 7361.111111
A201: 186 | B201: 0 | C201: 7361.111111 | D201: 0 | E201: 7361.111111
A202: 187 | B202: 0 | C202: 7361.111111 | D202: 0 | E202: 7361.111111
... 53 more rows

Sheet CASH (hidden)
A1: 3 | B1: DATA | C1: COEFF | D1: # | E1: SOLITERS | F1: MINEXPENSES | G1: Столбец1 | H1: ОБРАНЕМІСТО | I1: СОЛІТЕРИ
A2: 6 | B2: 2 МЛН + | C2: 1.2 | D2: 1 | E2: 0 | F2: -1853 | G2: 1 | H2: 6 | I2: 1
A3: 5 | B3: 1 МЛН + | C3: 1.1 | D3: 2 | E3: 1 | F3: =$F$2*Таблица2[[#This Row],[Столбец1]] -> -3706 | G3: 2 | H3: =VLOOKUP(CITYCHOICE,$A$2:$C$7,3,0) -> 1.2
A4: 4 | B4: 0.5 МЛН + | C4: 1 | D4: 3 | E4: 2 | F4: =$F$2*Таблица2[[#This Row],[Столбец1]] -> -5559 | G4: 3 | H4: =VLOOKUP(CITYCHOICE,$A$2:$C$7,2,0) -> 2 МЛН + | I4: =VLOOKUP(SOLITERSQ,E2:F7,2,0) -> -3706
A5: 3 | B5: 0.1 МЛН + | C5: 0.9 | D5: 4 | E5: 3 | F5: =$F$2*Таблица2[[#This Row],[Столбец1]] -> -7412 | G5: 4
A6: 2 | B6: 50 Т - | C6: 0.8 | D6: 5 | E6: 4 | F6: =$F$2*Таблица2[[#This Row],[Столбец1]] -> -9265 | G6: 5
A7: 1 | B7: 20 Т - | C7: 0.7 | D7: 6 | E7: 5 | F7: =$F$2*Таблица2[[#This Row],[Столбец1]] -> -11118 | G7: 6
G8: clnumber | H8: clgroup | I8: cllimit
G9: 1 | H9: Внутрішні клієнти інші | I9: =[0]!INCOME*2 -> 
A10: ПРОЦЕНТНА СТАВКА. РІЧНИХ | B10: МІСЯЦІВ КРЕДИТУ | C10: МІН. ЗАРПЛАТНЯ | D10: КОЕФ. СОЦВНЕСКІВ | E10: КОЕФ. СОЦВНЕСКІВ2 | G10: 2 | H10: Зовнішні клієнти | I10: 50000
G11: 3 | H11: Співробітники Банку | I11: 250000
G12: 4 | H12: Клієнти ЗКП/Пенсіонери | I12: 250000
H13: Макс сума кредиту | I13: =IF(D5=CASH!H9,CASH!I9,IF(D5=CASH!H10,CASH!I10,IF(D5=CASH!H11,CASH!I11,IF(D5=CASH!H12,CASH!I12,"")))) -> 
H14: Обрана клієнтська група | I14: 4
I15: =VLOOKUP(CLIENTCHOICE,$A$19:$C$22,3,0) -> 250000
A18: clnumber | B18: clgroup | C18: cllimit
A19: 1 | B19: Внутрішні клієнти інші | C19: =I9 -> 
A20: 2 | B20: Зовнішні клієнти | C20: 50000 | F20: 250
A21: 3 | B21: Співробітники Банку | C21: 250000 | F21: 450
A22: 4 | B22: Клієнти ЗКП/Пенсіонери | C22: 250000
B23: Макс сума кредиту
B24: Обрана клієнтська група | C24: =CLIENTCHOICE -> 4
B25: Макс сума кредиту | C25: =I15 -> 250000
B26: Клієнтська група | C26: =VLOOKUP(CLIETCHOCE,$A$19:$C$22,2,0) -> Клієнти ЗКП/Пенсіонери

Sheet калькулятор платежів
A5: Потужність ЕС | B5: 30 | C5: кВт
A6: Орієн. вартість ПРОЕКТУ | B6: 530000 | C6: грн.
A7: Аванс | B7: 0.5 | C7: %
A8: Сума авансу | B8: =B6*B7 -> 265000 | C8: грн.
A9: Сума кредиту | B9: =B6-(B6*B7) -> 265000 | C9: грн.
A10: Разова комісія | B10: 0.0299
A11: Разова комісія | B11: =B9*B10 -> 7923.5 | C11: грн.
A12: Процентна ставка | B12: 0.1799 | C12: річних
A13: Строк кредитування | B13: 36 | C13: міс. | D13: Орієнт. дохід/міс., грн.
A14: Метод погашення | B14: стандарт | D14: =IF(B5=5,'окупность '!D6,IF(B5=10,'окупность '!D7,IF(B5=15,'окупность '!D8,IF(B5=20,'окупность '!D9,IF(B5=30,'окупность '!D10))))) -> 14050
A15: орієнтовний страховий платіж від | B15: =B6*0.3% -> 1590 | C15: грн.
A17: Місяць | B17: Залишок заборгованості на кінець періоду | C17: Погашення основної суми | D17: Сума відсотків | E17: Платіж
A18: Відсоток переплати,% | B18: =(D19+B11)/C19 -> 
A19: Всього | C19: =SUMIF(C20:C103,"<>#Н/Д") -> 
A20: =IF((B13=12)*(B14="ануїтет"),#REF!,IF((B13=24)*(B14="ануїтет"),#REF!,IF((B13=36)*(B14="ануїтет"),#REF!,IF((B13=48)*(B14="ануїтет"),#REF!,IF((B13=60)*(B14="ануїтет"),#REF!,IF((B13=72)*(B14="ануїтет"),#REF!,IF((B13=84)*(B14="ануїтет"),#REF!,IF((B13=12)*(B14="стандарт"),Zag_shema!A16:E27,IF((B13=24)*(B14="стандарт"),Zag_shema!A16:E39,IF((B13=36)*(B14="стандарт"),Zag_shema!A16:E51,IF((B13=48)*(B14="стандарт"),Zag_shema!A16:E63,IF((B13=60)*(B14="стандарт"),Zag_shema!A16:E75,IF((B13=72)*(B14="стандарт"),Zag_shema!A16:E87,IF((B13=84)*(B14="стандарт"),Zag_shema!A16:E99,"")))))))))))))) -> 1 | B20: 257638.8889 | C20: 7361.111111 | D20: 3972.791667 | E20: 11333.90278
A21: 2 | B21: 250277.7778 | C21: 7361.111111 | D21: 3862.436343 | E21: 11223.54745
A22: 3 | B22: 242916.6667 | C22: 7361.111111 | D22: 3752.081019 | E22: 11113.19213
A23: 4 | B23: 235555.5556 | C23: 7361.111111 | D23: 3641.725694 | E23: 11002.83681
A24: 5 | B24: 228194.4444 | C24: 7361.111111 | D24: 3531.37037 | E24: 10892.48148
A25: 6 | B25: 220833.3333 | C25: 7361.111111 | D25: 3421.015046 | E25: 10782.12616
A26: 7 | B26: 213472.2222 | C26: 7361.111111 | D26: 3310.659722 | E26: 10671.77083
A27: 8 | B27: 206111.1111 | C27: 7361.111111 | D27: 3200.304398 | E27: 10561.41551
A28: 9 | B28: 198750 | C28: 7361.111111 | D28: 3089.949074 | E28: 10451.06019
A29: 10 | B29: 191388.8889 | C29: 7361.111111 | D29: 2979.59375 | E29: 10340.70486
A30: 11 | B30: 184027.7778 | C30: 7361.111111 | D30: 2869.238426 | E30: 10230.34954
A31: 12 | B31: 176666.6667 | C31: 7361.111111 | D31: 2758.883102 | E31: 10119.99421
A32: 13 | B32: 169305.5556 | C32: 7361.111111 | D32: 2648.527778 | E32: 10009.63889
A33: 14 | B33: 161944.4444 | C33: 7361.111111 | D33: 2538.172454 | E33: 9899.283565
A34: 15 | B34: 154583.3333 | C34: 7361.111111 | D34: 2427.81713 | E34: 9788.928241
A35: 16 | B35: 147222.2222 | C35: 7361.111111 | D35: 2317.461806 | E35: 9678.572917
A36: 17 | B36: 139861.1111 | C36: 7361.111111 | D36: 2207.106481 | E36: 9568.217593
A37: 18 | B37: 132500 | C37: 7361.111111 | D37: 2096.751157 | E37: 9457.862269
A38: 19 | B38: 125138.8889 | C38: 7361.111111 | D38: 1986.395833 | E38: 9347.506944
A39: 20 | B39: 117777.7778 | C39: 7361.111111 | D39: 1876.040509 | E39: 9237.15162
A40: 21 | B40: 110416.6667 | C40: 7361.111111 | D40: 1765.685185 | E40: 9126.796296
A41: 22 | B41: 103055.5556 | C41: 7361.111111 | D41: 1655.329861 | E41: 9016.440972
A42: 23 | B42: 95694.44444 | C42: 7361.111111 | D42: 1544.974537 | E42: 8906.085648
A43: 24 | B43: 88333.33333 | C43: 7361.111111 | D43: 1434.619213 | E43: 8795.730324
A44: 25 | B44: 80972.22222 | C44: 7361.111111 | D44: 1324.263889 | E44: 8685.375
A45: 26 | B45: 73611.11111 | C45: 7361.111111 | D45: 1213.908565 | E45: 8575.019676
A46: 27 | B46: 66250 | C46: 7361.111111 | D46: 1103.553241 | E46: 8464.664352
A47: 28 | B47: 58888.88889 | C47: 7361.111111 | D47: 993.1979167 | E47: 8354.309028
A48: 29 | B48: 51527.77778 | C48: 7361.111111 | D48: 882.8425926 | E48: 8243.953704
A49: 30 | B49: 44166.66667 | C49: 7361.111111 | D49: 772.4872685 | E49: 8133.59838
A50: 31 | B50: 36805.55556 | C50: 7361.111111 | D50: 662.1319444 | E50: 8023.243056
A51: 32 | B51: 29444.44444 | C51: 7361.111111 | D51: 551.7766204 | E51: 7912.887731
A52: 33 | B52: 22083.33333 | C52: 7361.111111 | D52: 441.4212963 | E52: 7802.532407
A53: 34 | B53: 14722.22222 | C53: 7361.111111 | D53: 331.0659722 | E53: 7692.177083
A54: 35 | B54: 7361.111111 | C54: 7361.111111 | D54: 220.7106481 | E54: 7581.821759
A55: 36 | B55: 0 | C55: 7361.111111 | D55: 110.3553241 | E55: 7471.466435

Sheet окупность (hidden)
C5: потужність | D5: дохід міс.
C6: 5 | D6: 2364.583333 | E6: 170000
C7: 10 | D7: 4731.25 | E7: 280000
C8: 15 | D8: 7095.833333 | E8: 390000
C9: 20 | D9: 9354.166667 | E9: 470000
C10: 30 | D10: 14050 | E10: 670000
